[Event "Titled Tuesday Blitz August 09 Early 2022"]
[White "Garrido, Denis"]
[Black "Lehtosaari, Mauri"]
[WhiteFideId "601217"]
[BlackFideId "501999"]
[WhiteElo "2349"]
[BlackElo "2490"]
[Result "1/2-1/2"]
[Round "09"]
[TimeControl "180+1"]
[Date "2022.08.09"]
[WhiteClock "0:00:11"]
[BlackClock "0:00:06"]

1. e4 {[%clk 0:02:57]}  d5 {[%clk 0:02:59]} 2. exd5 {[%clk 0:02:55]}  Qxd5 {[%clk 0:03:00]} 3. Nc3 {[%clk 0:02:55]}  Qe5+ {[%clk 0:02:59]} 4. Be2 {[%clk 0:02:54]}  c6 {[%clk 0:02:59]} 5. Nf3 {[%clk 0:02:54]}  Qc7 {[%clk 0:03:00]} 6. d4 {[%clk 0:02:54]}  Bf5 {[%clk 0:02:59]} 7. O-O {[%clk 0:02:53]}  e6 {[%clk 0:02:59]} 8. Re1 {[%clk 0:02:51]}  Bd6 {[%clk 0:02:54]} 9. d5 {[%clk 0:02:48]}  Ne7 {[%clk 0:02:46]} 10. dxe6 {[%clk 0:02:42]}  Bxe6 {[%clk 0:02:44]} 11. h3 {[%clk 0:02:39]}  O-O {[%clk 0:02:43]} 12. Nd4 {[%clk 0:02:38]}  Bc8 {[%clk 0:02:28]} 13. Kh1 {[%clk 0:02:13]}  a6 {[%clk 0:02:13]} 14. Bd3 {[%clk 0:02:12]}  Ng6 {[%clk 0:02:03]} 15. Qh5 {[%clk 0:02:11]}  Nd7 {[%clk 0:01:58]} 16. Nf5 {[%clk 0:02:08]}  Nf6 {[%clk 0:01:58]} 17. Qg5 {[%clk 0:02:02]}  Bxf5 {[%clk 0:01:42]} 18. Qxf5 {[%clk 0:01:58]}  Rfe8 {[%clk 0:01:31]} 19. Bg5 {[%clk 0:01:57]}  Nd7 {[%clk 0:01:19]} 20. h4 {[%clk 0:01:48]}  Ndf8 {[%clk 0:01:19]} 21. h5 {[%clk 0:01:45]}  Ne5 {[%clk 0:01:19]} 22. h6 {[%clk 0:01:14]}  Nxd3 {[%clk 0:01:05]} 23. cxd3 {[%clk 0:01:13]}  Qd7 {[%clk 0:00:50]} 24. Qf3 {[%clk 0:01:05]}  Ne6 {[%clk 0:00:48]} 25. Qg4 {[%clk 0:00:57]}  Nc5 {[%clk 0:00:48]} 26. Qxd7 {[%clk 0:00:40]}  Nxd7 {[%clk 0:00:48]} 27. Ne4 {[%clk 0:00:40]}  Be5 {[%clk 0:00:47]} 28. hxg7 {[%clk 0:00:40]}  Kxg7 {[%clk 0:00:46]} 29. Re3 {[%clk 0:00:31]}  f6 {[%clk 0:00:45]} 30. Bh4 {[%clk 0:00:30]}  f5 {[%clk 0:00:41]} 31. Ng5 {[%clk 0:00:29]}  h6 {[%clk 0:00:39]} 32. Nf3 {[%clk 0:00:28]}  Bf6 {[%clk 0:00:37]} 33. Rae1 {[%clk 0:00:24]}  Rxe3 {[%clk 0:00:36]} 34. Rxe3 {[%clk 0:00:24]}  Kf7 {[%clk 0:00:35]} 35. Bxf6 {[%clk 0:00:22]}  Kxf6 {[%clk 0:00:36]} 36. Nd4 {[%clk 0:00:22]}  Nc5 {[%clk 0:00:34]} 37. b4 {[%clk 0:00:21]}  Na4 {[%clk 0:00:30]} 38. Re6+ {[%clk 0:00:21]}  Kf7 {[%clk 0:00:30]} 39. Rxh6 {[%clk 0:00:20]}  f4 {[%clk 0:00:30]} 40. Rh7+ {[%clk 0:00:20]}  Kf6 {[%clk 0:00:31]} 41. Rxb7 {[%clk 0:00:20]}  c5 {[%clk 0:00:29]} 42. bxc5 {[%clk 0:00:20]}  Nxc5 {[%clk 0:00:30]} 43. Rb6+ {[%clk 0:00:20]}  Ke5 {[%clk 0:00:30]} 44. Nf3+ {[%clk 0:00:21]}  Kd5 {[%clk 0:00:29]} 45. Rf6 {[%clk 0:00:20]}  Nxd3 {[%clk 0:00:29]} 46. Kg1 {[%clk 0:00:19]}  Rb8 {[%clk 0:00:29]} 47. Kh2 {[%clk 0:00:17]}  Rh8+ {[%clk 0:00:25]} 48. Kg1 {[%clk 0:00:17]}  Rb8 {[%clk 0:00:25]} 49. Rh6 {[%clk 0:00:18]}  Rb1+ {[%clk 0:00:24]} 50. Kh2 {[%clk 0:00:18]}  Rb2 {[%clk 0:00:25]} 51. Rh5+ {[%clk 0:00:18]}  Ke4 {[%clk 0:00:21]} 52. Ra5 {[%clk 0:00:16]}  Nxf2 {[%clk 0:00:20]} 53. Rxa6 {[%clk 0:00:16]}  Ng4+ {[%clk 0:00:20]} 54. Kh3 {[%clk 0:00:16]}  Ne3 {[%clk 0:00:21]} 55. Ra4+ {[%clk 0:00:16]}  Kf5 {[%clk 0:00:18]} 56. Nd4+ {[%clk 0:00:15]}  Kg5 {[%clk 0:00:17]} 57. Ra5+ {[%clk 0:00:16]}  Kg6 {[%clk 0:00:17]} 58. g3 {[%clk 0:00:09]}  fxg3 {[%clk 0:00:15]} 59. Kxg3 {[%clk 0:00:10]}  Nc4 {[%clk 0:00:15]} 60. Rc5 {[%clk 0:00:10]}  Nd2 {[%clk 0:00:15]} 61. Kf4 {[%clk 0:00:08]}  Rxa2 {[%clk 0:00:14]} 62. Rc6+ {[%clk 0:00:07]}  Kf7 {[%clk 0:00:14]} 63. Nb5 {[%clk 0:00:07]}  Ra4+ {[%clk 0:00:12]} 64. Ke5 {[%clk 0:00:07]}  Ra5 {[%clk 0:00:13]} 65. Rc5 {[%clk 0:00:06]}  Nb3 {[%clk 0:00:12]} 66. Kd5 {[%clk 0:00:04]}  Nxc5 {[%clk 0:00:12]} 67. Kxc5 {[%clk 0:00:05]}  Ra4 {[%clk 0:00:12]} 68. Nd4 {[%clk 0:00:05]}  Ke7 {[%clk 0:00:10]} 69. Nc6+ {[%clk 0:00:06]}  Ke6 {[%clk 0:00:09]} 70. Nd4+ {[%clk 0:00:06]}  Ke5 {[%clk 0:00:10]} 71. Nc6+ {[%clk 0:00:07]}  Ke4 {[%clk 0:00:10]} 72. Ne7 {[%clk 0:00:08]}  Ra1 {[%clk 0:00:09]} 73. Nc6 {[%clk 0:00:08]}  Rc1+ {[%clk 0:00:09]} 74. Kd6 {[%clk 0:00:08]}  Rc2 {[%clk 0:00:08]} 75. Ne7 {[%clk 0:00:08]}  Rd2+ {[%clk 0:00:07]} 76. Ke6 {[%clk 0:00:08]}  Ra2 {[%clk 0:00:07]} 77. Kd6 {[%clk 0:00:08]}  Ra6+ {[%clk 0:00:06]} 78. Nc6 {[%clk 0:00:08]}  Kd3 {[%clk 0:00:04]} 79. Kd5 {[%clk 0:00:07]}  Ra8 {[%clk 0:00:03]} 80. Nb4+ {[%clk 0:00:07]}  Kc3 {[%clk 0:00:03]} 81. Nc6 {[%clk 0:00:08]}  Rc8 {[%clk 0:00:03]} 82. Ne7 {[%clk 0:00:08]}  Re8 {[%clk 0:00:03]} 83. Nc6 {[%clk 0:00:07]}  Kd3 {[%clk 0:00:03]} 84. Ne5+ {[%clk 0:00:08]}  Ke3 {[%clk 0:00:03]} 85. Nc6 {[%clk 0:00:08]}  Kf4 {[%clk 0:00:03]} 86. Nd4 {[%clk 0:00:08]}  Rd8+ {[%clk 0:00:03]} 87. Kc4 {[%clk 0:00:08]}  Ke4 {[%clk 0:00:04]} 88. Nc6 {[%clk 0:00:09]}  Rc8 {[%clk 0:00:04]} 89. Kc5 {[%clk 0:00:10]}  Kf5 {[%clk 0:00:04]} 90. Kd6 {[%clk 0:00:10]}  Kf6 {[%clk 0:00:04]} 91. Nd4 {[%clk 0:00:09]}  Rd8+ {[%clk 0:00:05]} 92. Kc5 {[%clk 0:00:10]}  Ke5 {[%clk 0:00:06]} 93. Nc6+ {[%clk 0:00:10]}  Ke6 {[%clk 0:00:06]} 94. Nxd8+ {[%clk 0:00:11]} 1/2-1/2


[Site "https://www.chess.com"]

[Event "Titled Tuesday Blitz August 09 Early 2022"]
[White "Gatterer, Florian"]
[Black "Daeschler, Florian"]
[WhiteFideId "811688"]
[BlackFideId "20678193"]
[WhiteElo "2218"]
[BlackElo "2187"]
[Result "1/2-1/2"]
[Round "09"]
[TimeControl "180+1"]
[Date "2022.08.09"]
[WhiteClock "0:00:05"]
[BlackClock "0:00:38"]

1. c4 {[%clk 0:03:00]}  b6 {[%clk 0:02:54]} 2. Nf3 {[%clk 0:02:56]}  Bb7 {[%clk 0:02:54]} 3. e3 {[%clk 0:02:55]}  c5 {[%clk 0:02:52]} 4. Be2 {[%clk 0:02:52]}  Nf6 {[%clk 0:02:52]} 5. O-O {[%clk 0:02:51]}  e6 {[%clk 0:02:51]} 6. b3 {[%clk 0:02:52]}  d5 {[%clk 0:02:51]} 7. cxd5 {[%clk 0:02:51]}  Bxd5 {[%clk 0:02:46]} 8. Bb2 {[%clk 0:02:45]}  Be7 {[%clk 0:02:47]} 9. Nc3 {[%clk 0:02:44]}  Bb7 {[%clk 0:02:45]} 10. d4 {[%clk 0:02:44]}  O-O {[%clk 0:02:43]} 11. dxc5 {[%clk 0:02:40]}  Bxc5 {[%clk 0:02:42]} 12. Qxd8 {[%clk 0:02:40]}  Rxd8 {[%clk 0:02:43]} 13. Rfd1 {[%clk 0:02:39]}  Nc6 {[%clk 0:02:43]} 14. a3 {[%clk 0:02:37]}  Be7 {[%clk 0:02:33]} 15. Rxd8+ {[%clk 0:02:36]}  Rxd8 {[%clk 0:02:32]} 16. Rd1 {[%clk 0:02:35]}  Rxd1+ {[%clk 0:02:32]} 17. Bxd1 {[%clk 0:02:28]}  Na5 {[%clk 0:02:29]} 18. Nd2 {[%clk 0:02:15]}  Nd5 {[%clk 0:02:29]} 19. b4 {[%clk 0:02:02]}  Nxc3 {[%clk 0:02:26]} 20. Bxc3 {[%clk 0:02:02]}  Nc6 {[%clk 0:02:27]} 21. Bf3 {[%clk 0:01:57]}  Kf8 {[%clk 0:02:24]} 22. Nc4 {[%clk 0:01:31]}  f6 {[%clk 0:02:23]} 23. b5 {[%clk 0:01:26]}  Nd8 {[%clk 0:02:22]} 24. Bxb7 {[%clk 0:01:15]}  Nxb7 {[%clk 0:02:23]} 25. a4 {[%clk 0:01:15]}  Ke8 {[%clk 0:02:11]} 26. a5 {[%clk 0:01:11]}  bxa5 {[%clk 0:02:06]} 27. Bxa5 {[%clk 0:00:53]}  Kd7 {[%clk 0:01:50]} 28. Bc3 {[%clk 0:00:40]}  Nd6 {[%clk 0:01:43]} 29. Nxd6 {[%clk 0:00:39]}  Bxd6 {[%clk 0:01:43]} 30. Bd4 {[%clk 0:00:39]}  Bb8 {[%clk 0:01:40]} 31. Bc5 {[%clk 0:00:40]}  Kc8 {[%clk 0:01:30]} 32. h3 {[%clk 0:00:27]}  Kb7 {[%clk 0:01:31]} 33. Kf1 {[%clk 0:00:25]}  Bc7 {[%clk 0:01:30]} 34. Ke2 {[%clk 0:00:21]}  Bb6 {[%clk 0:01:31]} 35. Bd6 {[%clk 0:00:20]}  Bd8 {[%clk 0:01:18]} 36. Bc5 {[%clk 0:00:20]}  Bb6 {[%clk 0:01:17]} 37. Bd6 {[%clk 0:00:18]}  Kc8 {[%clk 0:01:13]} 38. Kd3 {[%clk 0:00:13]}  Kd7 {[%clk 0:01:12]} 39. Bf8 {[%clk 0:00:12]}  g6 {[%clk 0:01:10]} 40. f3 {[%clk 0:00:13]}  e5 {[%clk 0:01:10]} 41. e4 {[%clk 0:00:12]}  Ke6 {[%clk 0:01:00]} 42. Kc4 {[%clk 0:00:12]}  Kd7 {[%clk 0:00:45]} 43. Bb4 {[%clk 0:00:09]}  Bd4 {[%clk 0:00:42]} 44. Bf8 {[%clk 0:00:08]}  Be3 {[%clk 0:00:41]} 45. Kd5 {[%clk 0:00:06]}  Bd4 {[%clk 0:00:38]} 46. Bb4 {[%clk 0:00:05]} 1/2-1/2


[Site "https://www.chess.com"]

[Event "Titled Tuesday Blitz August 09 Early 2022"]
[White "Hambleton, Aman"]
[Black "Aldokhin, Ivan"]
[WhiteFideId "2606577"]
[BlackFideId "24115720"]
[WhiteElo "2538"]
[BlackElo "2246"]
[Result "1-0"]
[Round "09"]
[TimeControl "180+1"]
[Date "2022.08.09"]
[WhiteClock "0:00:10"]
[BlackClock "0:00:03"]

1. d4 {[%clk 0:03:00]}  Nf6 {[%clk 0:02:58]} 2. Bf4 {[%clk 0:03:00]}  g6 {[%clk 0:02:52]} 3. Nc3 {[%clk 0:02:58]}  d6 {[%clk 0:02:46]} 4. e4 {[%clk 0:02:58]}  Bg7 {[%clk 0:02:44]} 5. Qd2 {[%clk 0:02:57]}  h6 {[%clk 0:02:33]} 6. f3 {[%clk 0:02:51]}  Nc6 {[%clk 0:02:09]} 7. O-O-O {[%clk 0:02:51]}  e6 {[%clk 0:01:44]} 8. Nge2 {[%clk 0:02:17]}  Bd7 {[%clk 0:01:44]} 9. Be3 {[%clk 0:01:44]}  Qe7 {[%clk 0:01:43]} 10. Kb1 {[%clk 0:01:31]}  a6 {[%clk 0:01:30]} 11. Nc1 {[%clk 0:01:27]}  b5 {[%clk 0:01:05]} 12. a3 {[%clk 0:00:59]}  Rb8 {[%clk 0:00:51]} 13. Nb3 {[%clk 0:00:53]}  h5 {[%clk 0:00:22]} 14. Bg5 {[%clk 0:00:50]}  Qf8 {[%clk 0:00:18]} 15. e5 {[%clk 0:00:47]}  Nh7 {[%clk 0:00:17]} 16. exd6 {[%clk 0:00:41]}  Nxg5 {[%clk 0:00:10]} 17. dxc7 {[%clk 0:00:41]}  Rc8 {[%clk 0:00:10]} 18. Qxg5 {[%clk 0:00:41]}  Qe7 {[%clk 0:00:06]} 19. Qf4 {[%clk 0:00:17]}  O-O {[%clk 0:00:06]} 20. d5 {[%clk 0:00:17]}  exd5 {[%clk 0:00:03]} 21. Nxd5 {[%clk 0:00:18]}  Qe5 {[%clk 0:00:02]} 22. Qxe5 {[%clk 0:00:18]}  Nxe5 {[%clk 0:00:02]} 23. Ne7+ {[%clk 0:00:18]}  Kh7 {[%clk 0:00:02]} 24. Nxc8 {[%clk 0:00:19]}  Rxc8 {[%clk 0:00:03]} 25. f4 {[%clk 0:00:20]}  Rxc7 {[%clk 0:00:02]} 26. fxe5 {[%clk 0:00:20]}  Bg4 {[%clk 0:00:03]} 27. Re1 {[%clk 0:00:19]}  Bh6 {[%clk 0:00:02]} 28. h3 {[%clk 0:00:19]}  Be6 {[%clk 0:00:01]} 29. Nd4 {[%clk 0:00:18]}  Bd5 {[%clk 0:00:01]} 30. Bd3 {[%clk 0:00:16]}  Bf4 {[%clk 0:00:01]} 31. Rhf1 {[%clk 0:00:14]}  Bg3 {[%clk 0:00:02]} 32. Re2 {[%clk 0:00:13]}  Bh4 {[%clk 0:00:02]} 33. e6 {[%clk 0:00:10]}  f5 {[%clk 0:00:03]} 34. Nxf5 {[%clk 0:00:09]}  gxf5 {[%clk 0:00:03]} 35. Rxf5 {[%clk 0:00:10]}  Kh6 {[%clk 0:00:03]} 36. Rxd5 {[%clk 0:00:10]}  Be7 {[%clk 0:00:03]} 37. Rd7 {[%clk 0:00:10]} 1-0


[Site "https://www.chess.com"]

[Event "Titled Tuesday Blitz August 09 Early 2022"]
[White "Horcajuelo Rocamora, Martin"]
[Black "Begunov, Konstantin"]
[WhiteFideId "24573027"]
[BlackFideId "4118510"]
[WhiteElo "1882"]
[BlackElo "2262"]
[Result "0-1"]
[Round "09"]
[TimeControl "180+1"]
[Date "2022.08.09"]
[WhiteClock "0:01:06"]
[BlackClock "0:00:16"]

1. e4 {[%clk 0:02:31]}  c5 {[%clk 0:02:59]} 2. Nf3 {[%clk 0:02:23]}  d6 {[%clk 0:02:59]} 3. d4 {[%clk 0:02:23]}  cxd4 {[%clk 0:03:00]} 4. Nxd4 {[%clk 0:02:24]}  Nf6 {[%clk 0:03:00]} 5. Nc3 {[%clk 0:02:25]}  a6 {[%clk 0:03:01]} 6. Be3 {[%clk 0:02:16]}  Ng4 {[%clk 0:03:00]} 7. Bc1 {[%clk 0:02:14]}  Nc6 {[%clk 0:03:00]} 8. f3 {[%clk 0:02:14]}  Qb6 {[%clk 0:02:59]} 9. fxg4 {[%clk 0:02:08]}  Qxd4 {[%clk 0:02:59]} 10. h3 {[%clk 0:01:58]}  Qxd1+ {[%clk 0:02:49]} 11. Kxd1 {[%clk 0:01:59]}  e6 {[%clk 0:02:41]} 12. Be3 {[%clk 0:01:58]}  b5 {[%clk 0:02:39]} 13. Bd3 {[%clk 0:01:54]}  Bb7 {[%clk 0:02:37]} 14. Ke2 {[%clk 0:01:54]}  g6 {[%clk 0:02:32]} 15. Rhd1 {[%clk 0:01:51]}  Bg7 {[%clk 0:02:31]} 16. Rab1 {[%clk 0:01:49]}  Ke7 {[%clk 0:02:22]} 17. Kf2 {[%clk 0:01:49]}  Rac8 {[%clk 0:02:08]} 18. Ne2 {[%clk 0:01:46]}  h5 {[%clk 0:01:58]} 19. gxh5 {[%clk 0:01:45]}  Rxh5 {[%clk 0:01:57]} 20. c3 {[%clk 0:01:45]}  Ne5 {[%clk 0:01:53]} 21. Bc2 {[%clk 0:01:44]}  Nc4 {[%clk 0:01:50]} 22. Nf4 {[%clk 0:01:43]}  Nxe3 {[%clk 0:01:43]} 23. Kxe3 {[%clk 0:01:42]}  Bh6 {[%clk 0:01:33]} 24. Kf3 {[%clk 0:01:43]}  Re5 {[%clk 0:01:04]} 25. Rd4 {[%clk 0:01:34]}  g5 {[%clk 0:00:36]} 26. Nd3 {[%clk 0:01:29]}  Rxe4 {[%clk 0:00:32]} 27. Rxe4 {[%clk 0:01:29]}  f5 {[%clk 0:00:32]} 28. Nf2 {[%clk 0:01:30]}  Rf8 {[%clk 0:00:22]} 29. Ke2 {[%clk 0:01:28]}  fxe4 {[%clk 0:00:20]} 30. Nxe4 {[%clk 0:01:29]}  Rf4 {[%clk 0:00:19]} 31. Rf1 {[%clk 0:01:26]}  Rxe4+ {[%clk 0:00:18]} 32. Bxe4 {[%clk 0:01:27]}  Bxe4 {[%clk 0:00:18]} 33. Rf2 {[%clk 0:01:24]}  d5 {[%clk 0:00:18]} 34. Ke3 {[%clk 0:01:25]}  g4+ {[%clk 0:00:16]} 35. Kd4 {[%clk 0:01:23]}  g3 {[%clk 0:00:16]} 36. Re2 {[%clk 0:01:20]}  Kd6 {[%clk 0:00:16]} 37. c4 {[%clk 0:01:15]}  e5+ {[%clk 0:00:16]} 38. Kc3 {[%clk 0:01:14]}  bxc4 {[%clk 0:00:16]} 39. h4 {[%clk 0:01:10]}  Bd3 {[%clk 0:00:16]} 40. Re1 {[%clk 0:01:09]}  d4+ {[%clk 0:00:15]} 41. Kb4 {[%clk 0:01:09]}  Kd5 {[%clk 0:00:15]} 42. Rd1 {[%clk 0:01:08]}  e4 {[%clk 0:00:16]} 43. Ka5 {[%clk 0:01:06]}  e3 {[%clk 0:00:16]} 0-1


[Site "https://www.chess.com"]

[Event "Titled Tuesday Blitz August 09 Early 2022"]
[White "Jiganchine, Roman"]
[Black "Buscar, Michael"]
[WhiteFideId "2603667"]
[BlackFideId "2603616"]
[WhiteElo "2294"]
[BlackElo "2010"]
[Result "0-1"]
[Round "09"]
[TimeControl "180+1"]
[Date "2022.08.09"]
[WhiteClock "0:00:08"]
[BlackClock "0:00:12"]

1. Nf3 {[%clk 0:02:58]}  d5 {[%clk 0:02:47]} 2. e3 {[%clk 0:02:58]}  Nf6 {[%clk 0:02:46]} 3. c4 {[%clk 0:02:58]}  e6 {[%clk 0:02:43]} 4. b3 {[%clk 0:02:57]}  Be7 {[%clk 0:02:43]} 5. Bb2 {[%clk 0:02:58]}  O-O {[%clk 0:02:40]} 6. Nc3 {[%clk 0:02:57]}  c6 {[%clk 0:02:38]} 7. Qc2 {[%clk 0:02:56]}  Nbd7 {[%clk 0:02:38]} 8. g4 {[%clk 0:02:52]}  Nxg4 {[%clk 0:02:22]} 9. Rg1 {[%clk 0:02:51]}  Nge5 {[%clk 0:02:22]} 10. Be2 {[%clk 0:02:40]}  Nxf3+ {[%clk 0:02:16]} 11. Bxf3 {[%clk 0:02:39]}  Bf6 {[%clk 0:02:16]} 12. O-O-O {[%clk 0:02:31]}  Ne5 {[%clk 0:02:12]} 13. Be2 {[%clk 0:02:29]}  Ng6 {[%clk 0:02:12]} 14. f4 {[%clk 0:02:26]}  d4 {[%clk 0:02:04]} 15. Ne4 {[%clk 0:02:15]}  e5 {[%clk 0:01:32]} 16. Nxf6+ {[%clk 0:02:01]}  Qxf6 {[%clk 0:01:22]} 17. fxe5 {[%clk 0:02:00]}  Qf2 {[%clk 0:01:18]} 18. Bd3 {[%clk 0:01:37]}  dxe3 {[%clk 0:01:16]} 19. dxe3 {[%clk 0:01:30]}  Qxc2+ {[%clk 0:01:09]} 20. Kxc2 {[%clk 0:01:30]}  Be6 {[%clk 0:01:10]} 21. Rg3 {[%clk 0:01:18]}  Rfd8 {[%clk 0:01:04]} 22. Rdg1 {[%clk 0:01:17]}  Kf8 {[%clk 0:00:48]} 23. h4 {[%clk 0:01:15]}  Nxh4 {[%clk 0:00:49]} 24. Rxg7 {[%clk 0:01:07]}  Rxd3 {[%clk 0:00:42]} 25. Rg8+ {[%clk 0:00:39]}  Ke7 {[%clk 0:00:42]} 26. Ba3+ {[%clk 0:00:38]}  Kd7 {[%clk 0:00:42]} 27. Kxd3 {[%clk 0:00:36]}  Rxg8 {[%clk 0:00:25]} 28. Rxg8 {[%clk 0:00:36]}  Ng6 {[%clk 0:00:25]} 29. Ra8 {[%clk 0:00:35]}  Nxe5+ {[%clk 0:00:23]} 30. Ke4 {[%clk 0:00:32]}  Ng4 {[%clk 0:00:20]} 31. Rxa7 {[%clk 0:00:31]}  Kc7 {[%clk 0:00:20]} 32. Ra8 {[%clk 0:00:30]}  h5 {[%clk 0:00:19]} 33. Rh8 {[%clk 0:00:29]}  Nf6+ {[%clk 0:00:15]} 34. Ke5 {[%clk 0:00:27]}  Ng4+ {[%clk 0:00:13]} 35. Kf4 {[%clk 0:00:27]}  Nf6 {[%clk 0:00:13]} 36. Rh6 {[%clk 0:00:27]}  Nd7 {[%clk 0:00:07]} 37. Rxh5 {[%clk 0:00:26]}  Nb6 {[%clk 0:00:07]} 38. Bc5 {[%clk 0:00:25]}  Nc8 {[%clk 0:00:07]} 39. Rh8 {[%clk 0:00:23]}  b6 {[%clk 0:00:07]} 40. Bf8 {[%clk 0:00:23]}  c5 {[%clk 0:00:07]} 41. Rh6 {[%clk 0:00:23]}  Kd7 {[%clk 0:00:07]} 42. Rh2 {[%clk 0:00:22]}  Na7 {[%clk 0:00:07]} 43. Rd2+ {[%clk 0:00:21]}  Kc7 {[%clk 0:00:08]} 44. Bd6+ {[%clk 0:00:21]}  Kb7 {[%clk 0:00:08]} 45. Be5 {[%clk 0:00:21]}  Nc6 {[%clk 0:00:09]} 46. Bf6 {[%clk 0:00:21]}  Nb4 {[%clk 0:00:09]} 47. a3 {[%clk 0:00:21]}  Nc6 {[%clk 0:00:09]} 48. Rd6 {[%clk 0:00:18]}  Na5 {[%clk 0:00:09]} 49. Rd3 {[%clk 0:00:18]}  Kc6 {[%clk 0:00:09]} 50. Bg7 {[%clk 0:00:15]}  b5 {[%clk 0:00:09]} 51. cxb5+ {[%clk 0:00:11]}  Kxb5 {[%clk 0:00:10]} 52. b4 {[%clk 0:00:11]}  cxb4 {[%clk 0:00:10]} 53. axb4 {[%clk 0:00:11]}  Kxb4 {[%clk 0:00:10]} 54. Rd4+ {[%clk 0:00:09]}  Kb5 {[%clk 0:00:10]} 55. Bf8 {[%clk 0:00:08]}  Nc6 {[%clk 0:00:10]} 56. Rd2 {[%clk 0:00:06]}  Kb6 {[%clk 0:00:11]} 57. Bd6 {[%clk 0:00:06]}  Na7 {[%clk 0:00:10]} 58. Be5 {[%clk 0:00:07]}  Kc6 {[%clk 0:00:10]} 59. Bd4 {[%clk 0:00:07]}  Nb5 {[%clk 0:00:10]} 60. Rc2+ {[%clk 0:00:06]}  Kd7 {[%clk 0:00:10]} 61. Rd2 {[%clk 0:00:06]}  Ke8 {[%clk 0:00:08]} 62. Rc2 {[%clk 0:00:06]}  Nd6 {[%clk 0:00:08]} 63. Rd2 {[%clk 0:00:06]}  Nc4 {[%clk 0:00:08]} 64. Rd1 {[%clk 0:00:06]}  Nd6 {[%clk 0:00:07]} 65. Rc1 {[%clk 0:00:06]}  Kd7 {[%clk 0:00:07]} 66. Be5 {[%clk 0:00:06]}  Nc4 {[%clk 0:00:07]} 67. Bd4 {[%clk 0:00:05]}  Nd6 {[%clk 0:00:06]} 68. Be5 {[%clk 0:00:05]}  Nc4 {[%clk 0:00:07]} 69. Bd4 {[%clk 0:00:05]}  Ke7 {[%clk 0:00:07]} 70. Bc5+ {[%clk 0:00:05]}  Kf6 {[%clk 0:00:07]} 71. Bd4+ {[%clk 0:00:05]}  Ke7 {[%clk 0:00:07]} 72. Be5 {[%clk 0:00:06]}  Nb6 {[%clk 0:00:06]} 73. Bd4 {[%clk 0:00:05]}  Nd5+ {[%clk 0:00:06]} 74. Kg3 {[%clk 0:00:05]}  Nb4 {[%clk 0:00:06]} 75. Rb1 {[%clk 0:00:05]}  Nd5 {[%clk 0:00:06]} 76. Rb2 {[%clk 0:00:05]}  Kd7 {[%clk 0:00:05]} 77. Rb7+ {[%clk 0:00:05]}  Kc6 {[%clk 0:00:05]} 78. Rb2 {[%clk 0:00:05]}  Ne7 {[%clk 0:00:05]} 79. Kf3 {[%clk 0:00:06]}  Nf5 {[%clk 0:00:06]} 80. Kf4 {[%clk 0:00:06]}  Nxd4 {[%clk 0:00:05]} 81. exd4 {[%clk 0:00:06]}  Kd5 {[%clk 0:00:06]} 82. Rd2 {[%clk 0:00:05]}  Bd7 {[%clk 0:00:05]} 83. Ke3 {[%clk 0:00:06]}  Be6 {[%clk 0:00:06]} 84. Rf2 {[%clk 0:00:06]}  Kd6 {[%clk 0:00:06]} 85. Rf4 {[%clk 0:00:07]}  Bd5 {[%clk 0:00:07]} 86. Rf5 {[%clk 0:00:07]}  Ke6 {[%clk 0:00:07]} 87. Rg5 {[%clk 0:00:07]}  Kd6 {[%clk 0:00:08]} 88. Rh5 {[%clk 0:00:07]}  Be6 {[%clk 0:00:07]} 89. Rh6 {[%clk 0:00:08]}  Kd5 {[%clk 0:00:08]} 90. Rh5+ {[%clk 0:00:07]}  Kd6 {[%clk 0:00:08]} 91. Rc5 {[%clk 0:00:07]}  Bd5 {[%clk 0:00:08]} 92. Kf4 {[%clk 0:00:07]}  Ke6 {[%clk 0:00:09]} 93. Kg5 {[%clk 0:00:07]}  Kd6 {[%clk 0:00:09]} 94. Kf4 {[%clk 0:00:08]}  Ke6 {[%clk 0:00:09]} 95. Ra5 {[%clk 0:00:08]}  Kd6 {[%clk 0:00:09]} 96. Ra6+ {[%clk 0:00:08]}  Kd7 {[%clk 0:00:09]} 97. Ke5 {[%clk 0:00:08]}  Bc4 {[%clk 0:00:09]} 98. d5 {[%clk 0:00:08]}  Bxa6 {[%clk 0:00:09]} 99. Kf6 {[%clk 0:00:08]}  Ke8 {[%clk 0:00:09]} 100. d6 {[%clk 0:00:08]}  Bb5 {[%clk 0:00:09]} 101. Ke5 {[%clk 0:00:07]}  Bd7 {[%clk 0:00:10]} 102. Kf6 {[%clk 0:00:07]}  Be6 {[%clk 0:00:10]} 103. Kg7 {[%clk 0:00:07]}  Kd7 {[%clk 0:00:11]} 104. Kf6 {[%clk 0:00:08]}  Kxd6 {[%clk 0:00:12]} 0-1


[Site "https://www.chess.com"]

[Event "Titled Tuesday Blitz August 09 Early 2022"]
[White "Kamsky, Gata"]
[Black "Salem, A.R. Saleh"]
[WhiteFideId "2000024"]
[BlackFideId "9301348"]
[WhiteElo "2666"]
[BlackElo "2674"]
[Result "1-0"]
[Round "09"]
[TimeControl "180+1"]
[Date "2022.08.09"]
[WhiteClock "0:00:27"]
[BlackClock "0:00:03"]

1. e4 {[%clk 0:03:00]}  c6 {[%clk 0:02:58]} 2. d3 {[%clk 0:02:53]}  d5 {[%clk 0:02:59]} 3. Nf3 {[%clk 0:02:54]}  dxe4 {[%clk 0:02:55]} 4. dxe4 {[%clk 0:02:53]}  Qxd1+ {[%clk 0:02:56]} 5. Kxd1 {[%clk 0:02:53]}  Nf6 {[%clk 0:02:56]} 6. Nfd2 {[%clk 0:02:53]}  g5 {[%clk 0:02:54]} 7. a4 {[%clk 0:02:53]}  g4 {[%clk 0:02:47]} 8. a5 {[%clk 0:02:52]}  Be6 {[%clk 0:02:35]} 9. Nc3 {[%clk 0:02:42]}  Nbd7 {[%clk 0:02:31]} 10. Bc4 {[%clk 0:02:36]}  Bxc4 {[%clk 0:02:29]} 11. Nxc4 {[%clk 0:02:35]}  O-O-O {[%clk 0:02:28]} 12. Ke2 {[%clk 0:02:33]}  h5 {[%clk 0:02:04]} 13. Be3 {[%clk 0:02:31]}  Kb8 {[%clk 0:02:01]} 14. Bf4+ {[%clk 0:02:28]}  Kc8 {[%clk 0:01:59]} 15. Be3 {[%clk 0:02:15]}  Kb8 {[%clk 0:01:56]} 16. Rad1 {[%clk 0:02:13]}  Bh6 {[%clk 0:01:46]} 17. e5 {[%clk 0:02:12]}  Bxe3 {[%clk 0:01:39]} 18. fxe3 {[%clk 0:02:03]}  Nh7 {[%clk 0:01:21]} 19. Ne4 {[%clk 0:02:02]}  f5 {[%clk 0:00:55]} 20. Ng3 {[%clk 0:01:54]}  e6 {[%clk 0:00:55]} 21. Nxh5 {[%clk 0:01:53]}  Ng5 {[%clk 0:00:51]} 22. Nf4 {[%clk 0:01:51]}  Nc5 {[%clk 0:00:42]} 23. Rxd8+ {[%clk 0:01:41]}  Rxd8 {[%clk 0:00:43]} 24. Nd6 {[%clk 0:01:36]}  Nd7 {[%clk 0:00:37]} 25. Nc4 {[%clk 0:01:32]}  Nc5 {[%clk 0:00:35]} 26. Nd3 {[%clk 0:01:32]}  Nce4 {[%clk 0:00:33]} 27. Nd2 {[%clk 0:00:53]}  Rh8 {[%clk 0:00:26]} 28. Nxe4 {[%clk 0:00:52]}  Nxe4 {[%clk 0:00:27]} 29. Nf2 {[%clk 0:00:35]}  Nxf2 {[%clk 0:00:11]} 30. Kxf2 {[%clk 0:00:35]}  Rd8 {[%clk 0:00:11]} 31. h4 {[%clk 0:00:35]}  gxh3 {[%clk 0:00:10]} 32. gxh3 {[%clk 0:00:34]}  Kc7 {[%clk 0:00:06]} 33. h4 {[%clk 0:00:34]}  Rh8 {[%clk 0:00:04]} 34. h5 {[%clk 0:00:34]}  Kd7 {[%clk 0:00:05]} 35. Kf3 {[%clk 0:00:31]}  Ke7 {[%clk 0:00:05]} 36. e4 {[%clk 0:00:32]}  Kf7 {[%clk 0:00:04]} 37. Kf4 {[%clk 0:00:30]}  fxe4 {[%clk 0:00:04]} 38. Kxe4 {[%clk 0:00:31]}  Rd8 {[%clk 0:00:03]} 39. Rf1+ {[%clk 0:00:29]}  Ke7 {[%clk 0:00:04]} 40. Rg1 {[%clk 0:00:29]}  Kf7 {[%clk 0:00:04]} 41. h6 {[%clk 0:00:29]}  Rh8 {[%clk 0:00:02]} 42. Rg7+ {[%clk 0:00:29]}  Kf8 {[%clk 0:00:02]} 43. Rxb7 {[%clk 0:00:29]}  Rxh6 {[%clk 0:00:03]} 44. Rxa7 {[%clk 0:00:29]}  Rh2 {[%clk 0:00:03]} 45. Kd3 {[%clk 0:00:28]}  Rh3+ {[%clk 0:00:03]} 46. Kc4 {[%clk 0:00:29]}  Rh2 {[%clk 0:00:03]} 47. Kb3 {[%clk 0:00:28]}  Rh5 {[%clk 0:00:03]} 48. Rb7 {[%clk 0:00:27]} 1-0


[Site "https://www.chess.com"]